{"text_format":"1","workbook":"xlsx","n_sheets":1,"sheets":["Ark1"],"not_rendered":{"charts":0,"images":0,"macros":1,"external_links":0,"defined_names":1,"comments":1,"pivot_tables":0},"unopened":[],"bounds":{"document_bytes":16777216,"sheet_cells":100000,"rows_first":2000,"rows_last":500,"rows_between":2000,"halvings":0,"cell_chars":16384,"cell_head_chars":4096},"cells_cut":0,"cells_raw":0,"read":"whole","date_system":"1900"}

{"sheet":"Ark1","index":0,"n_rows":63,"n_cols":9,"rows_kept":63,"cut":false,"hidden":false,"merged":[[62,0,62,2],[48,8,48,9],[59,8,59,9],[60,8,60,9],[15,0,15,2],[15,8,15,9],[20,0,20,2],[20,8,20,9],[21,0,21,2],[21,8,21,9],[22,0,22,2],[22,8,22,9],[16,0,16,2],[16,8,16,9],[17,0,17,2],[17,8,17,9],[18,8,18,9],[27,0,27,7],[27,8,27,9],[28,0,28,2],[28,8,28,9],[29,0,29,2],[29,8,29,9],[32,0,32,2],[8,1,11,9],[0,0,0,9],[3,3,3,4],[4,1,4,2],[4,3,4,4],[6,1,6,9],[1,0,1,9],[7,1,7,9],[3,1,3,2],[3,5,3,9],[4,5,4,9],[2,0,2,9],[5,1,5,2],[5,3,5,4],[5,5,5,9],[12,0,12,9],[13,0,13,1],[13,6,13,7],[13,8,14,9],[14,0,14,7],[19,0,19,2],[19,8,19,9],[26,0,26,2],[26,8,26,9],[23,0,23,2],[23,8,23,9],[24,8,24,9],[25,0,25,2],[25,8,25,9],[18,0,18,2],[24,0,24,2],[32,8,32,9],[33,8,33,9],[34,0,34,2],[34,8,34,9],[42,0,42,2],[42,8,42,9],[43,0,43,7],[43,8,43,9],[35,0,35,2],[35,8,35,9],[37,0,37,2],[37,8,37,9],[39,0,39,2],[38,8,38,9],[36,0,36,2],[38,0,38,2],[44,0,44,2],[44,8,44,9],[39,8,39,9],[40,0,40,2],[40,8,40,9],[41,0,41,2],[41,8,41,9],[49,0,49,2],[49,8,49,9],[50,0,50,2],[50,8,50,9],[51,0,51,2],[51,8,51,9],[45,0,45,2],[45,8,45,9],[46,0,46,2],[46,8,46,9],[47,0,47,2],[47,8,47,9],[48,0,48,2],[55,8,55,9],[56,8,56,9],[57,8,57,9],[58,0,58,2],[58,8,58,9],[52,0,52,2],[52,8,52,9],[53,0,53,2],[53,8,53,9],[54,0,54,2],[54,8,54,9],[55,0,55,2],[56,0,56,2],[57,0,57,2]]}
["AU VIBORG KANTINE\nKantinerekvisition for AU ansatte\nBestillinger til under 10 personer, skal ske senest kl. 12.00 arbejdsdagen før den ønskede levering.\nBestillinger til over 25 personer, skal ske senest kl. 12.00 fem arbejdsdage inden den ønskede levering.\nÆndringer senest dagen før klokken 12 sendes til: foulumkantine@au.dk\n"]
["Krav til deltagerlisten:\n- Deltagere skal angives med navns nævnelse. Der må ikke anvendes forkortelse for navne\n- Der må gerne angives et navngivet udvalg, nævn eller gruppe, hvor man vil kunne finde tilbage til medlemmerne fx Aktivitetsudvalg\n- Tilhørsforhold på deltagerne skal angives, dvs. intern/ekstern virksomhed\n- Der må gerne vedhæftes en særskilt deltagerliste; sendes til kantinen.foulum.okoplan@au.dk \n- Hvis deltagerkredsen er en større gruppe, hvor der er usikkerhed om, hvem der deltager i arrangementet, fx forsvar, receptioner mv, kan invitationen til arrangementet sendes til: kantinen.foulum.okoplan@au.dk"]
["Markeret med * SKAL udfyldes - ALLE FELTER SKAL VÆRE UDFYLDT FOR AT ORDREN BLIVER GODKENDT OG EKSPEDERET! "]
["Mødedato/kl: *",null,null,"Rekvirent: *"]
["Afhentes kl:",null,null,"Lokaltlf./email: *"]
["Sag: *",null,null,"Antal deltagere: *"]
["Sagsopgave: *"]
["Anledning: *"]
["Deltagere: *"]
[]
[]
[]
[]
["Sortiment",null,null,"Antal ","Pris ",null,"Pris i alt",null,"Øvrige oplysninger til køkkenet:"]
["Møde formiddag"]
["Kaffe / te kuvert ",null,null,null,20,null,"kr.",{"$f":"E16*D16","v":0}]
["Kaffe, te, hj.lavet boller, ost og smør",null,null,null,45,null,"kr.",{"$f":"E17*D17","v":0}]
[null,null,null,null,null,null,"kr.",0]
["Kaffe/te og kringle min. 5 pers. 2dage før",null,null,null,38,null,"kr.",0]
[null,null,null,null,null,null,"kr.",0]
["Hel frugt",null,null,null,9,null,"kr.",0]
["frugtfad udskåret- kuvert",null,null,null,18,null,"kr.",0]
["½ oste mad",null,null,null,18,null,"kr.",0]
[null,null,null,null,null,null,"kr.",0]
["Isvand pr person",null,null,null,5,null,"kr.",0]
["Kildevand 50 cl.",null,null,null,22,null,"kr.",0]
[null,null,null,null,null,null,"kr.",0]
["Frokost- varm mad serveres senest 12.30"]
["Dagens ret (best.ugen før) min. 8 pers.",null,null,null,75,null,"kr.",{"$f":"D29*E29","v":0}]
["1 Smørrebrød, Uspecificeret VEGETAR",null,null,null,32,null,"kr.",0]
["1 stk. Smørrebrød, uspecifiseret ALM.",null,null,null,30,null,"kr.",{"$f":"D31*E31","v":0}]
["VEGETAR sandwich",null,null,null,42,null,"kr.",{"$f":"D32*E32","v":0}]
["KØD Sandwich",null,null,null,42,null,"kr.",0]
["Håndmad",null,null,null,18,null,"kr.",0]
["Vegetar tapas ",null,null,null,135,null,"kr.",0]
["Tapas",null,null,null,135,null,"kr.",0]
["3 retters vegetar buffet min. 6 kuverter ",null,null,null,140,null,"kr.",0]
["3 retters buffet min. 6 kuverter",null,null,null,140,null,"kr.",0]
["Vegetar tærte med salat min. 10 kuverter",null,null,null,80,null,"kr.",0]
["1 vegetarisk/vegansksalat incl. Brød ",null,null,null,65,null,"kr.",0]
["stjerneskud",null,null,null,85,null,"kr.",0]
["frokost tallerken (tre slags)",null,null,null,90,null,"kr.",0]
["sodavand- øl- kildevand",null,null,null,22,null,"kr.",0]
["Møde eftermiddag "]
["Kaffe / te kuvert ",null,null,null,20,null,"kr.",{"$f":"E45*D45","v":0}]
["Kaffe, te og kage",null,null,null,38,null,"kr.",{"$f":"E46*D46","v":0}]
["kaffe, te og chokolade",null,null,null,35,null,"kr.",0]
["Kaffe/te og æblekage-bestilles 2 dage før",null,null,null,48,null,"kr.",0]
["Frugt hel pr. stk",null,null,null,9,null,"kr.",0]
["Frugtfad, udskåret - kuvert.",null,null,null,18,null,"kr.",0]
[null,null,null,null,null,null,"kr.",0]
["Kildevand 50 cl.",null,null,null,22,null,"kr.",{"$f":"E52*D52","v":0}]
[null,null,null,null,null,null,"kr.",{"$f":"E53*D53","v":0}]
[null,null,null,null,null,null,"kr."]
["Isvand pr kuvert",null,null,null,5,null,"kr.",0]
["Manglende oprydning",null,null,null,50,null,"kr.",0]
["leveringsgebyr 50-125 kr.",null,null,null,null,null,"kr.",0]
["Tillæg ved særlig kost 5-20 kr.(glutenfri, vegansk osv.)",null,null,null,5,null,"kr.",0]
["I alt",null,null,null,null,null,"kr.",{"$f":"SUM(H16:H58)","v":0}]
[null,null,null,null,"Moms udgør",null,"kr.",{"$f":"H59*0.2","v":0}]
[null,null,null,null,"Beløb eskl moms",null,"kr.",{"$f":"H59*0.8","v":0}]
[]
["Version 1.0 - redigeret d. 08.05.2026"]